bitfinex-derivatives/quotes_SOLF0:USTF0_20220109
["timestamp","ask_amount","ask_price","bid_price","bid_amount"]
[1641722065329,8.82,138.76,138.73,4.09361118]
[1641722065733,2.40149161,138.75,138.7,4.09361118]
[1641722065933,2.40149161,138.75,138.7,31.75840118]
[1641722066332,2.40149161,138.75,138.7,35.75840118]
[1641722066533,2.40149161,138.79,138.71,4.09361118]
[1641722066729,9.61077717,138.79,138.71,4.09361118]
[1641722066931,7.20928556,138.79,138.71,4.09361118]
[1641722067330,4.0,138.77,138.71,4.09361118]
[1641722067530,9.204,138.77,138.71,4.09361118]
[1641722067731,2.40149161,138.76,138.68,4.09361118]
[1641722068336,2.40149161,138.76,138.7,4.0]
[1641722068532,2.40149161,138.76,138.7,8.522]
[1641722068732,2.40149161,138.76,138.7,19.72764923]
[1641722068933,2.40149161,138.8,138.71,8.09361118]
[1641722069333,11.20564923,138.86,138.72,8.09361118]
[1641722069334,2.40149161,138.85,138.72,8.09361118]
[1641722069633,2.40149161,138.85,138.75,4.0]
[1641722069834,2.40149161,138.85,138.75,6.317]
[1641722070034,2.40149161,138.85,138.79,27.66479]
[1641722070235,2.40149161,138.87,138.79,35.30179]
[1641722070640,13.60662166,138.87,138.79,7.637]
[1641722070839,2.40149161,138.87,138.79,7.637]
[1641722071051,2.40149161,138.86,138.79,7.637]
[1641722071238,2.40149161,138.86,138.8,7.20046083]
[1641722071438,2.40149161,138.89,138.8,11.29203382]
[1641722071841,6.40149161,138.89,138.8,4.09157299]
[1641722072039,4.0,138.89,138.81,4.09157299]
[1641722072639,2.40149161,138.88,138.81,4.09157299]
[1641722073039,2.40149161,138.89,138.81,4.09157299]
[1641722074042,2.40149161,138.89,138.83,4.0]
[1641722074339,2.40149161,138.92,138.83,13.423]
[1641722074739,2.40149161,138.93,138.84,4.09157299]
[1641722074939,2.40149161,138.93,138.84,5.89157299]
[1641722075340,2.40149161,138.93,138.85,4.09157299]
[1641722075740,2.40149161,138.93,138.83,4.09157299]
[1641722076043,27.66479,138.9,138.82,4.09157299]
[1641722076240,7.20383244,138.89,138.82,4.09157299]
[1641722076541,13.60532405,138.89,138.8,55.32958]
[1641722076740,9.60532405,138.89,138.8,55.32958]
[1641722077040,2.40149161,138.88,138.81,4.09218518]
[1641722077841,2.40149161,138.89,138.81,4.09218518]
[1641722081746,6.40149161,138.89,138.81,4.09218518]
[1641722082146,2.40149161,138.88,138.81,4.09218518]
[1641722082346,9.15249161,138.88,138.81,4.09218518]
[1641722082547,9.15249161,138.88,138.8,4.09218518]
[1641722082946,2.40149161,138.87,138.8,4.09218518]
[1641722083947,2.40149161,138.87,138.8,31.75697518]
[1641722084349,9.55249161,138.87,138.81,4.09218518]
[1641722084748,2.40149161,138.86,138.79,33.8905]
[1641722085048,2.40149161,138.86,138.8,4.09240633]
[1641722085448,2.40149161,138.87,138.79,4.09240633]
[1641722085848,6.024,138.88,138.79,4.09240633]
[1641722086349,2.40149161,138.87,138.79,4.09240633]
[1641722086749,6.40149161,138.87,138.79,4.09240633]
[1641722086948,2.40149161,138.87,138.79,4.09240633]
[1641722087149,2.40149161,138.86,138.79,4.09240633]
[1641722087549,2.40149161,138.87,138.79,4.09240633]
[1641722088151,30.06628161,138.87,138.79,4.09240633]
[1641722088750,2.40149161,138.86,138.79,4.09240633]
[1641722090553,2.40149161,138.86,138.8,4.0]
[1641722090753,2.40149161,138.86,138.8,10.68]
[1641722090953,2.40149161,138.89,138.81,4.09240633]
[1641722091555,2.40149161,138.92,138.81,8.09240633]
[1641722091754,2.40149161,138.92,138.81,4.09240633]
[1641722091953,2.40149161,138.92,138.82,8.09240633]
[1641722092154,2.40149161,138.92,138.86,27.66479]
[1641722092353,2.40149161,138.93,138.86,27.66479]
[1641722092956,2.40149161,138.93,138.86,34.75579]
[1641722093956,2.40149161,138.93,138.87,4.09053229]
[1641722095558,2.40149161,138.93,138.84,60.25689]
[1641722095760,18.70324884,138.93,138.84,60.25689]
[1641722096160,30.06628161,138.92,138.84,60.25689]
[1641722096561,2.40149161,138.91,138.85,4.09111958]
[1641722097863,2.40149161,138.94,138.85,4.09111958]
[1641722099065,2.40913497,138.93,138.85,4.09111958]
[1641722099264,10.97513497,138.93,138.85,4.09111958]
[1641722099464,2.40149161,138.92,138.85,4.09111958]
[1641722100669,2.40913497,138.91,138.85,4.09111958]
[1641722101170,2.40149161,138.9,138.85,4.09111958]
[1641722102471,11.55,138.9,138.85,4.09111958]
[1641722102670,7.20435143,138.88,138.85,4.09111958]
[1641722102868,7.20435143,138.88,138.83,15.21996023]
[1641722103269,6.40149161,138.87,138.83,15.21996023]
[1641722103568,6.40149161,138.87,138.78,33.7867]
[1641722103569,2.40149161,138.86,138.78,33.7867]
[1641722103770,6.40149161,138.86,138.78,33.7867]
[1641722103968,2.40149161,138.86,138.79,4.09234348]
[1641722104171,30.06628161,138.86,138.79,4.09234348]
[1641722104971,2.40149161,138.85,138.79,4.09234348]
[1641722105269,10.76341482,138.87,138.79,4.09234348]
[1641722105270,2.40149161,138.86,138.79,4.09234348]
[1641722105469,2.40149161,138.86,138.84,4.0]
[1641722105670,1e-08,138.86,138.84,9.787]
[1641722105869,15.21996023,138.89,138.84,9.787]
[1641722106170,15.21996023,138.9,138.86,27.66479]
[1641722106771,22.42093956,138.95,138.86,27.66479]
[1641722107370,1.68047303,138.94,138.87,4.09052148]
[1641722107572,4.0,138.91,138.87,4.09052148]
[1641722107771,6.222,138.91,138.83,15.21996023]
[1641722108170,1.68047303,138.9,138.83,15.21996023]
[1641722108371,1.68047303,138.9,138.81,35.659]
[1641722108571,1.68047303,138.9,138.84,4.09144868]
[1641722109072,1.68047303,138.9,138.83,4.09144868]
[1641722109871,1.68047303,138.9,138.85,4.0]
[1641722110072,1.68047303,138.9,138.89,27.66479]
[1641722110473,1.68047303,138.9,138.86,31.75623868]
[1641722110671,1.68047303,138.92,138.86,27.66479]
[1641722110870,1.68047303,138.92,138.83,32.9131]
[1641722111071,8.74347303,138.92,138.83,32.9131]
[1641722111471,8.74347303,138.92,138.83,48.13306023]
[1641722111771,1.68047303,138.91,138.84,4.09097923]
[1641722111971,8.88326771,138.91,138.84,4.09097923]
[1641722112173,36.54805771,138.91,138.84,4.09097923]
[1641722112474,1.68047303,138.9,138.83,4.09097923]
[1641722112874,1.68047303,138.9,138.82,4.09097923]
[1641722113074,1.68047303,138.9,138.83,4.0]
[1641722113276,1.68047303,138.9,138.84,4.0]
[1641722113473,1.68047303,138.9,138.87,4.0]
[1641722113673,1.68047303,138.91,138.87,10.937]
[1641722113873,1.68047303,138.91,138.88,4.0]
[1641722114073,1.68047303,138.92,138.9,27.66479]
[1641722114874,1.68047303,138.96,138.9,27.66479]
[1641722116075,1.68047303,138.97,138.91,4.08939245]
[1641722116277,1.68047303,138.97,138.94,27.66479]
[1641722116481,1.68047303,138.97,138.91,4.08939245]
[1641722117079,1.68047303,138.98,138.91,4.08939245]
[1641722117480,1.68047303,138.96,138.91,4.08939245]
[1641722117781,6.137,138.96,138.91,4.08939245]
[1641722117982,17.33746083,138.96,138.91,4.08939245]
[1641722118181,27.66479,138.94,138.86,15.21996023]
[1641722118382,27.66479,138.94,138.85,33.976]
[1641722118582,27.66479,138.94,138.87,4.0905439]
[1641722118783,1.68047303,138.93,138.87,4.0905439]
[1641722118983,8.68147303,138.93,138.87,4.0905439]
[1641722119184,8.68147303,138.93,138.86,4.0905439]
[1641722119584,1.68047303,138.92,138.86,4.0905439]
[1641722120286,1.68047303,138.93,138.88,27.66479]
[1641722120886,1.68047303,138.93,138.89,4.0905439]
[1641722121289,1.68047303,138.93,138.88,27.66479]
[1641722121686,1.68047303,138.95,138.89,4.09008478]
[1641722122288,5.68047303,138.95,138.89,4.09008478]
[1641722122587,4.0,138.95,138.85,33.976]
[1641722122788,1.68047303,138.94,138.85,33.976]
[1641722123288,16.90043326,138.94,138.86,4.09067651]
[1641722123688,1.68047303,138.93,138.86,4.09067651]
[1641722124791,1.68047303,138.94,138.86,4.09067651]
[1641722124991,16.90043326,138.94,138.86,4.09067651]
[1641722125593,1.68047303,138.93,138.86,4.09067651]
[1641722126195,1.68047303,138.93,138.87,27.66479]
[1641722126994,1.68047303,138.93,138.85,33.976]
[1641722127794,5.68047303,138.93,138.86,4.09076872]
[1641722128196,1.68047303,138.92,138.86,4.09076872]
[1641722128394,7.89947303,138.92,138.86,4.09076872]
[1641722128996,1.68047303,138.91,138.86,4.09076872]
[1641722131599,9.05,138.95,138.86,4.09076872]
[1641722131600,40.27913522,138.97,138.9,24.0]
[1641722131798,12.27913522,138.97,138.96,4.0]
[1641722131998,60.97520665,139.01,138.95,4.0]
[1641722132197,60.97520665,139.01,139.0,27.66479]
[1641722132599,7.1952799,139.06,139.0,27.66479]
[1641722133000,1.1751719,139.01,139.0,27.66479]
[1641722133502,1.1751719,139.05,139.0,27.66479]
[1641722134100,1.1751719,139.05,138.98,27.66479]
[1641722134603,4.0,139.04,138.98,27.66479]
[1641722134802,4.0,139.04,138.95,27.66479]
[1641722135002,4.0,139.01,138.95,27.66479]
[1641722135204,4.0,138.99,138.88,1.798]
[1641722135404,4.0,138.99,138.88,35.5196]
[1641722135603,1.1751719,138.98,138.89,4.08936096]
[1641722135805,8.5751719,138.98,138.89,4.08936096]
[1641722136204,8.5751719,138.98,138.91,27.66479]
[1641722136406,1.1751719,138.97,138.91,27.66479]
[1641722141410,1.1751719,138.97,138.88,63.18439]
[1641722141610,4.0,138.96,138.86,35.9039]
[1641722141812,1.1751719,138.97,138.86,35.9039]
[1641722141813,5.1751719,138.97,138.86,35.9039]
[1641722142011,4.0,138.95,138.86,35.9039]
[1641722142211,31.66479,138.93,138.87,4.09066319]
[1641722142612,4.0,138.9,138.87,4.09066319]
[1641722142812,9.283,138.9,138.87,4.09066319]
[1641722143013,9.283,138.9,138.79,35.605]
[1641722143212,1.1751719,138.89,138.79,35.605]
[1641722143612,1.1751719,138.89,138.8,4.09145642]
[1641722144016,4.0,138.86,138.8,4.09145642]
[1641722144212,27.66479,138.83,138.8,4.09145642]
[1641722144412,37.03679,138.83,138.8,4.09145642]
[1641722145013,1.1751719,138.82,138.79,4.09145642]
[1641722145812,1.1751719,138.82,138.77,4.09145642]
[1641722148319,28.8399619,138.82,138.77,4.09145642]
[1641722148918,1.1751719,138.81,138.77,4.09145642]
[1641722149919,1.1751719,138.85,138.77,4.09145642]
[1641722150121,7.98,138.81,138.77,4.09145642]
[1641722150726,1.1751719,138.8,138.77,4.09145642]
[1641722151722,1.1751719,138.82,138.77,4.09145642]
[1641722152123,1.1751719,138.82,138.77,7.084]
[1641722152322,1.1751719,138.82,138.77,34.74879]
[1641722152521,1.1751719,138.85,138.78,4.09145642]
[1641722154423,1.1751719,138.85,138.76,4.09145642]
[1641722154625,1.1751719,138.85,138.79,4.09145642]
[1641722155025,1.1751719,138.85,138.77,4.09145642]
[1641722155631,1.1751719,138.86,138.76,8.09145642]
[1641722155829,1.1751719,138.86,138.78,4.09145642]
[1641722156031,1.1751719,138.84,138.78,4.09145642]
[1641722156230,1.1751719,138.84,138.77,27.66479]
[1641722156428,7.568,138.84,138.77,27.66479]
[1641722156629,7.568,138.84,138.76,4.09145642]
[1641722156831,1.1751719,138.83,138.78,4.09145642]
[1641722157229,1.1751719,138.83,138.76,4.09145642]
[1641722158832,1.1751719,138.86,138.76,4.09145642]
[1641722159436,4.0,138.84,138.76,4.09145642]
[1641722159635,6.589,138.84,138.76,4.09145642]
[1641722160136,1.1751719,138.83,138.76,4.09145642]
[1641722160335,28.8399619,138.83,138.76,4.09145642]
[1641722160535,1.1751719,138.83,138.76,4.09145642]
[1641722160735,1.1751719,138.83,138.78,4.0]
[1641722160936,11.20357297,138.9,138.78,4.0]
[1641722160937,7.20227592,138.92,138.78,10.194]
[1641722161337,7.20227592,138.92,138.79,4.0]
[1641722161536,40.59284292,138.94,138.8,11.20046083]
[1641722162139,4.0,138.95,138.8,11.20046083]
[1641722162339,27.66479,138.92,138.83,27.66479]
[1641722162540,27.66479,138.92,138.83,35.32479]
[1641722162743,27.66479,138.92,138.84,4.09106555]
[1641722167048,15.1820195,138.95,138.86,4.0]
[1641722167447,42.99133629,138.98,138.85,4.0]
[1641722167646,2.39849337,138.98,138.87,4.09106555]
[1641722167846,13.59791742,138.98,138.87,4.09106555]
[1641722168046,9.59791742,138.98,138.87,4.09106555]
[1641722168247,4.0,138.93,138.85,4.09106555]
[1641722168446,34.86758468,138.91,138.85,4.09106555]
[1641722168647,34.86758468,138.91,138.84,4.09106555]
[1641722171149,4.0,138.88,138.84,4.09106555]
[1641722171349,4.0,138.85,138.78,15.1820195]
[1641722171549,4.0,138.84,138.78,15.1820195]
[1641722171751,7.084,138.85,138.79,4.09260194]
[1641722172351,34.74879,138.85,138.79,4.09260194]
[1641722173051,38.74879,138.85,138.77,4.09260194]
[1641722173751,34.74879,138.85,138.77,4.09260194]
[1641722176253,0.82532324,138.84,138.77,4.09260194]
[1641722177054,0.82532324,138.86,138.77,4.09260194]
[1641722183163,4.82532324,138.86,138.77,4.09260194]
[1641722183363,4.0,138.84,138.77,4.09260194]
[1641722183563,11.641,138.84,138.77,4.09260194]
[1641722183764,0.82532324,138.83,138.77,4.09260194]
[1641722184164,4.0,138.81,138.77,4.09260194]
[1641722184365,55.32958,138.78,138.77,4.09260194]
[1641722184565,63.13958,138.78,138.77,4.09260194]
[1641722184767,63.13958,138.78,138.71,32.4076]
[1641722184768,63.96490324,138.78,138.73,15.1820195]
[1641722185168,0.82532324,138.77,138.74,4.09407361]
[1641722186068,0.82532324,138.8,138.74,4.09407361]
[1641722186468,0.82532324,138.82,138.72,27.66479]
[1641722186669,0.82532324,138.82,138.72,42.8468095]
[1641722186868,0.82532324,138.82,138.73,4.09407361]
[1641722187569,0.82532324,138.82,138.75,4.0]
[1641722187972,0.82532324,138.82,138.76,4.09407361]
[1641722188370,0.82532324,138.84,138.76,4.09407361]
[1641722188769,0.82532324,138.84,138.75,4.09407361]
[1641722188970,6.98632324,138.84,138.75,4.09407361]
[1641722189470,0.82532324,138.83,138.75,4.09407361]
[1641722189870,4.0,138.82,138.75,4.09407361]
[1641722190370,8.03356947,138.81,138.75,4.09407361]
[1641722190574,27.66479,138.79,138.75,4.09407361]
[1641722190772,27.66479,138.79,138.74,4.09407361]
[1641722191072,0.82532324,138.78,138.72,4.09407361]
[1641722191471,9.15632324,138.78,138.72,4.09407361]
[1641722191972,0.82532324,138.77,138.72,4.09407361]
[1641722193676,4.82532324,138.77,138.72,4.09407361]
[1641722193874,11.2111051,138.75,138.72,4.09407361]
[1641722194073,11.2111051,138.75,138.71,15.1820195]
[1641722194074,4.0,138.74,138.71,15.1820195]
[1641722194474,55.32958,138.72,138.71,15.1820195]
[1641722194675,8.803,138.72,138.71,15.1820195]
[1641722194876,9.62832324,138.72,138.71,19.27720338]
[1641722195076,9.62832324,138.72,138.71,4.09518388]
[1641722195276,9.62832324,138.72,138.65,25.72144862]
[1641722195778,0.82532324,138.71,138.66,4.09543669]
[1641722196478,0.82532324,138.71,138.66,31.76022669]
[1641722196678,0.82532324,138.74,138.66,31.76022669]
[1641722196878,0.82532324,138.74,138.66,38.94322669]
[1641722197078,0.82532324,138.76,138.67,4.09543669]
[1641722198580,0.82532324,138.76,138.67,29.81785369]
[1641722199179,0.82532324,138.76,138.67,33.81785369]
[1641722199380,0.82532324,138.76,138.68,5.89743669]
[1641722199784,0.82532324,138.77,138.69,4.09543669]
[1641722199983,0.82532324,138.77,138.69,19.27745619]
[1641722200184,0.82532324,138.79,138.69,23.27745619]
[1641722200584,0.82532324,138.79,138.7,31.76022669]
[1641722200987,0.82532324,138.79,138.71,4.09543669]
[1641722201787,4.82532324,138.79,138.71,4.09543669]
[1641722201990,4.0,138.76,138.71,4.09543669]
[1641722202189,6.294,138.76,138.71,4.09543669]
[1641722202589,0.82532324,138.75,138.71,4.09543669]
[1641722202990,8.03668835,138.75,138.7,4.09543669]
[1641722203188,8.03668835,138.75,138.7,1e-08]
[1641722203390,4.0,138.72,138.67,15.1820195]
[1641722203589,7.87,138.72,138.63,58.13294663]
[1641722203989,7.87,138.72,138.63,62.13294663]
[1641722204390,2.05525179,138.71,138.64,8.09548766]
[1641722204590,2.05525179,138.71,138.64,35.76027766]
[1641722204791,2.05525179,138.71,138.65,4.09548766]
[1641722205190,2.05525179,138.76,138.65,4.09548766]
[1641722205392,6.05525179,138.76,138.65,4.09548766]
[1641722205591,11.2111051,138.75,138.65,4.09548766]
[1641722205790,18.5161051,138.75,138.65,4.09548766]
[1641722205996,7.21188519,138.74,138.65,4.09548766]
[1641722206392,2.05525179,138.73,138.65,4.09548766]
[1641722206592,27.66479,138.72,138.65,4.09548766]
[1641722206792,38.15104179,138.72,138.65,4.09548766]
[1641722207292,2.05525179,138.71,138.65,4.09548766]
[1641722207692,2.05525179,138.7,138.65,4.09548766]
[1641722207893,10.01825179,138.7,138.65,4.09548766]
[1641722208192,2.05525179,138.69,138.65,4.09548766]
[1641722208998,2.05525179,138.68,138.65,4.09548766]
[1641722209394,7.963,138.7,138.65,4.09548766]
[1641722209692,0.82550947,138.69,138.65,4.09548766]
[1641722211894,4.82550947,138.69,138.65,4.09548766]
[1641722212093,0.82550947,138.69,138.65,4.09548766]
[1641722212293,0.82550947,138.68,138.64,27.66479]
[1641722212695,0.82550947,138.69,138.65,4.09642914]
[1641722221002,4.82550947,138.69,138.65,4.09642914]
[1641722221403,0.82550947,138.69,138.65,4.09642914]
[1641722221603,0.82550947,138.68,138.65,4.09642914]
[1641722222003,0.82550947,138.69,138.65,4.09642914]
[1641722222603,0.82550947,138.69,138.65,13.21842914]
[1641722223003,0.82550947,138.71,138.65,13.21842914]
[1641722223204,0.82550947,138.68,138.66,4.09642914]
[1641722223603,0.82550947,138.71,138.66,4.09642914]
[1641722224204,0.82550947,138.71,138.65,11.55742914]
[1641722224605,0.82550947,138.71,138.67,4.09642914]
[1641722225004,0.82550947,138.71,138.66,4.09642914]
[1641722232013,8.00350947,138.71,138.66,4.09642914]
[1641722232614,0.82550947,138.7,138.66,8.09642914]
[1641722232814,15.1820195,138.75,138.69,27.66479]
[1641722233015,15.1820195,138.75,138.7,4.0]
[1641722233215,2.05719453,138.74,138.7,4.0]
[1641722233713,9.453e-05,138.74,138.7,4.0]
[1641722234115,9.453e-05,138.77,138.71,4.09417409]
[1641722235118,9.453e-05,138.77,138.71,8.09417409]
[1641722235316,2.40915492,138.8,138.71,8.09417409]
[1641722235615,2.40915492,138.8,138.72,4.09417409]
[1641722235816,9.453e-05,138.79,138.72,14.66417409]
[1641722236016,9.453e-05,138.79,138.73,4.0]
[1641722236217,9.453e-05,138.79,138.73,8.09417409]
[1641722236621,9.453e-05,138.81,138.74,4.09417409]
[1641722237018,9.453e-05,138.81,138.73,31.66479]
[1641722237421,9.453e-05,138.81,138.74,4.09417409]
[1641722240926,9.453e-05,138.81,138.75,4.0]
[1641722241126,9.453e-05,138.81,138.77,27.66479]
[1641722242527,9.453e-05,138.81,138.78,4.09326274]
[1641722242726,9.453e-05,138.81,138.78,10.99326274]
[1641722243427,9.453e-05,138.84,138.79,4.09326274]
[1641722244026,9.453e-05,138.87,138.79,4.09326274]
[1641722244826,4.0,138.86,138.77,27.66479]
[1641722245027,27.66479,138.83,138.77,27.66479]
[1641722245626,9.453e-05,138.82,138.77,27.66479]
[1641722245829,7.20782121,138.82,138.77,27.66479]
[1641722246028,9.453e-05,138.82,138.74,35.0179]
[1641722246429,9.453e-05,138.82,138.75,4.09360326]
[1641722247829,9.453e-05,138.84,138.75,4.09360326]
[1641722249030,27.66488453,138.84,138.75,4.09360326]
[1641722249231,4.0,138.79,138.75,4.09360326]
[1641722249432,10.74,138.79,138.75,4.09360326]
[1641722249833,9.453e-05,138.78,138.74,35.0179]
[1641722250734,9.453e-05,138.78,138.7,34.7052]
[1641722250934,9.453e-05,138.78,138.69,35.0033]
[1641722251134,11.20824623,138.81,138.71,4.09447913]
[1641722251135,27.66488453,138.79,138.71,4.09447913]
[1641722251338,31.66488453,138.79,138.71,4.09447913]
[1641722251735,4.00009453,138.78,138.7,4.09447913]
[1641722251935,4.0,138.76,138.7,4.09447913]
[1641722252135,4.0,138.75,138.69,27.66479]
[1641722252334,11.21006525,138.77,138.69,27.66479]
[1641722252537,11.21006525,138.77,138.7,4.09563339]
[1641722252538,9.453e-05,138.74,138.7,4.09563339]
[1641722252936,9.453e-05,138.76,138.69,27.66479]
[1641722253135,27.66479,138.75,138.69,27.66479]
[1641722253737,9.453e-05,138.74,138.69,27.66479]
[1641722253938,9.453e-05,138.74,138.64,71.9855]
[1641722254839,9.453e-05,138.74,138.65,4.09563209]
[1641722255240,9.453e-05,138.74,138.65,35.76042209]
[1641722255539,9.453e-05,138.74,138.65,43.22242209]
[1641722255740,9.453e-05,138.74,138.66,4.0]
[1641722255942,9.453e-05,138.74,138.66,8.09563209]
[1641722256343,9.453e-05,138.74,138.67,8.09563209]
[1641722256743,9.453e-05,138.74,138.68,4.09563209]
[1641722256943,9.453e-05,138.74,138.68,11.66463209]
[1641722257143,9.453e-05,138.74,138.68,39.32942209]
[1641722257646,9.453e-05,138.74,138.69,37.36173209]
[1641722257942,9.453e-05,138.78,138.7,4.09563209]
[1641722259044,4.00009453,138.78,138.7,4.09563209]
[1641722259247,27.66479,138.75,138.7,4.09563209]
[1641722259745,9.453e-05,138.74,138.7,4.09563209]
[1641722261345,9.453e-05,138.77,138.7,4.09563209]
[1641722262545,9.453e-05,138.77,138.71,4.0]
[1641722263145,9.453e-05,138.78,138.72,4.09563209]
[1641722263347,9.453e-05,138.78,138.72,31.76042209]
[1641722263548,9.453e-05,138.78,138.72,27.66479]
[1641722263949,9.453e-05,138.78,138.73,4.09563209]
[1641722271458,9.453e-05,138.78,138.73,9.92163209]
[1641722271658,9.453e-05,138.78,138.73,13.92163209]
[1641722271860,47.7990114,138.85,138.74,4.09563209]
[1641722271861,9.453e-05,138.81,138.74,4.09563209]
[1641722272059,9.453e-05,138.81,138.75,32.9506]
[1641722272258,9.453e-05,138.82,138.75,32.9506]
[1641722272658,4.0,138.81,138.76,4.09563209]
[1641722272860,13.302,138.81,138.76,4.09563209]
[1641722273160,4.00009453,138.8,138.73,38.07403209]
[1641722273460,27.66479,138.79,138.73,38.07403209]
[1641722273660,27.66488453,138.79,138.74,4.09563209]
[1641722273858,9.453e-05,138.79,138.74,4.09563209]
[1641722274057,9.453e-05,138.78,138.74,4.09563209]
[1641722274258,8.49409453,138.78,138.74,4.09563209]
[1641722274459,8.494,138.78,138.74,4.09563209]
[1641722274861,9.453e-05,138.77,138.74,4.09563209]
[1641722275661,9.453e-05,138.77,138.73,33.9784]
[1641722275861,4.00009453,138.77,138.7,49.6684195]
[1641722276063,9.453e-05,138.77,138.7,15.1820195]
[1641722276261,4.00009453,138.77,138.69,47.8741195]
[1641722276460,4.00009453,138.77,138.71,4.09501855]
[1641722276962,9.453e-05,138.76,138.7,4.09501855]
[1641722277962,2.41088384,138.76,138.7,4.09501855]
[1641722278262,9.453e-05,138.75,138.7,4.09501855]
[1641722278464,5.92109453,138.75,138.7,4.09501855]
[1641722278863,9.453e-05,138.74,138.7,4.09501855]
[1641722279464,4.00009453,138.74,138.7,4.09501855]
[1641722279664,9.453e-05,138.74,138.68,15.1820195]
[1641722280066,9.453e-05,138.74,138.69,4.09581314]
[1641722280469,9.453e-05,138.74,138.67,4.09581314]
[1641722281270,9.453e-05,138.74,138.67,8.09581314]
[1641722281573,9.453e-05,138.74,138.68,4.09581314]
[1641722282870,9.453e-05,138.74,138.68,19.27783264]
[1641722283272,9.453e-05,138.74,138.69,4.09581314]
[1641722284479,9.453e-05,138.77,138.69,4.09581314]
[1641722284773,9.453e-05,138.77,138.71,4.0]
[1641722284974,9.453e-05,138.77,138.72,4.0]
[1641722285375,9.453e-05,138.78,138.73,8.09581314]
[1641722285574,9.453e-05,138.78,138.75,27.66479]
[1641722285776,9.453e-05,138.79,138.75,34.41079]
[1641722286275,9.453e-05,138.79,138.76,4.09581314]
[1641722286975,9.453e-05,138.82,138.76,4.09581314]
[1641722290480,9.453e-05,138.82,138.76,8.09581314]
[1641722290679,9.453e-05,138.82,138.76,4.09581314]
[1641722290882,9.453e-05,138.82,138.77,4.09581314]
[1641722291182,9.453e-05,138.84,138.76,4.09581314]
[1641722291481,9.453e-05,138.84,138.77,4.0]
[1641722291782,9.453e-05,138.84,138.76,4.09581314]
[1641722292882,2.41142822,138.84,138.76,4.09581314]
[1641722293084,2.41142822,138.84,138.76,8.09581314]
[1641722293382,9.453e-05,138.83,138.76,8.09581314]
[1641722293784,9.453e-05,138.83,138.77,4.09581314]
[1641722293983,9.453e-05,138.83,138.77,12.33081314]
[1641722294185,9.453e-05,138.84,138.77,12.33081314]
[1641722294583,9.453e-05,138.84,138.78,4.09581314]
[1641722295486,9.453e-05,138.84,138.78,8.09581314]
[1641722295687,9.453e-05,138.84,138.78,4.09581314]
[1641722295890,9.453e-05,138.84,138.8,4.0]
[1641722296088,9.453e-05,138.84,138.82,4.0]
[1641722296289,15.1820195,138.86,138.82,4.0]
[1641722296495,15.1820195,138.86,138.81,8.09581314]
[1641722296692,15.1820195,138.89,138.8,10.329]
[1641722297595,1.19183362,138.88,138.81,4.09206469]
[1641722297995,1.19183362,138.88,138.82,27.66479]
[1641722298995,1.19183362,138.89,138.82,27.66479]
[1641722299398,1.19183362,138.89,138.83,4.09164254]
[1641722299596,1.19183362,138.89,138.83,11.30364254]
[1641722299797,1.19183362,138.9,138.83,15.30364254]
[1641722300199,1.19183362,138.9,138.86,4.0]
[1641722300397,1.19183362,138.9,138.86,12.261]
[1641722300598,1.19183362,138.92,138.86,12.261]
[1641722300998,1.19183362,138.92,138.87,4.09072404]
[1641722301400,3.362e-05,138.92,138.87,4.09072404]
[1641722301597,3.362e-05,138.92,138.87,8.09072404]
[1641722301797,3.362e-05,138.92,138.87,4.09072404]
[1641722301999,15.1820195,138.95,138.88,27.66479]
[1641722302198,7.20046083,138.96,138.88,27.66479]
[1641722302798,0.8334028,138.95,138.88,27.66479]
[1641722303501,0.8334028,138.95,138.9,4.0]
[1641722304100,0.8334028,138.96,138.89,12.174]
[1641722304702,0.8334028,138.96,138.9,4.0]
[1641722304901,0.8334028,138.97,138.9,4.0]
[1641722305901,0.8334028,138.97,138.88,33.46379]
[1641722306101,14.1594028,138.97,138.88,1.799]
[1641722306301,4.0,138.96,138.87,34.3141]
[1641722306701,4.8334028,138.95,138.87,34.3141]
[1641722306903,4.0,138.94,138.87,34.3141]
[1641722307103,13.9554028,138.94,138.87,34.3141]
[1641722307402,0.8334028,138.93,138.87,34.3141]
[1641722308002,27.66479,138.91,138.87,34.3141]
[1641722308201,34.40979,138.91,138.87,34.3141]
[1641722309001,34.40979,138.91,138.83,35.5727]
[1641722309201,34.40979,138.91,138.82,66.66749]
[1641722309402,0.8334028,138.9,138.82,68.46749]
[1641722309605,0.8334028,138.9,138.83,4.09128582]
[1641722310005,0.8334028,138.9,138.83,8.09128582]
[1641722310206,0.8334028,138.9,138.85,4.0]
[1641722310804,0.8334028,138.9,138.86,4.09128582]
[1641722311306,0.8334028,138.93,138.86,4.09128582]
[1641722314911,0.8334028,138.93,138.86,8.09128582]
[1641722315110,0.8334028,138.93,138.87,5.799]